[Event "*** Titled Tuesday 3|2 Blitz"]
[Site "Chess.com"]
[Date "2014.12.30"]
[Round "7"]
[White "davopetr"]
[Black "FairChess_on_YouTube"]
[Result "1/2-1/2"]
[WhiteElo "2576"]
[BlackElo "2694"]
[TimeControl "180+2"]
[EndTime "12:33:47 PST"]
[Termination "Game drawn by agreement"]

1. e4 {[%clk 0:03:00]} 1... c5 {[%clk 0:02:58.6]} 2. d3 {[%clk 0:02:56.8]} 2...
Nc6 {[%clk 0:02:58.1]} 3. f4 {[%clk 0:02:57.9]} 3... d5 {[%clk 0:02:57.5]} 4.
Be2 {[%clk 0:02:58]} 4... g6 {[%clk 0:02:28.7]} 5. Nf3 {[%clk 0:02:55.9]} 5...
Bg7 {[%clk 0:02:29.7]} 6. O-O {[%clk 0:02:44.8]} 6... Nf6 {[%clk 0:02:26]} 7. e5
{[%clk 0:02:41.9]} 7... Ng8 {[%clk 0:02:26.5]} 8. c4 {[%clk 0:02:35.7]} 8... d4
{[%clk 0:02:24]} 9. Nbd2 {[%clk 0:02:28.4]} 9... Nh6 {[%clk 0:02:25.1]} 10. Ne4
{[%clk 0:02:23.7]} 10... b6 {[%clk 0:02:26.7]} 11. Re1 {[%clk 0:02:11.5]} 11...
O-O {[%clk 0:02:22.4]} 12. Bf1 {[%clk 0:02:11.4]} 12... f5 {[%clk 0:02:14.8]}
13. Nf2 {[%clk 0:01:56.7]} 13... e6 {[%clk 0:02:08]} 14. a3 {[%clk 0:01:58]}
14... a5 {[%clk 0:02:06.7]} 15. g3 {[%clk 0:01:44.3]} 15... Bb7 {[%clk
0:02:07.8]} 16. Bg2 {[%clk 0:01:43.7]} 16... Nf7 {[%clk 0:02:04.5]} 17. Bd2
{[%clk 0:01:32.4]} 17... a4 {[%clk 0:02:01.5]} 18. h3 {[%clk 0:01:27]} 18... Ra6
{[%clk 0:02:01.1]} 19. g4 {[%clk 0:01:18.6]} 19... Qa8 {[%clk 0:01:58.9]} 20.
gxf5 {[%clk 0:01:10]} 20... exf5 {[%clk 0:02:00.5]} 21. Qe2 {[%clk 0:01:00.5]}
21... Re8 {[%clk 0:01:59.9]} 22. h4 {[%clk 0:00:58.7]} 22... Ncd8 {[%clk
0:01:59.6]} 23. Nh3 {[%clk 0:00:52]} 23... Ne6 {[%clk 0:01:59.6]} 24. Nfg5
{[%clk 0:00:47.1]} 24... Bxg2 {[%clk 0:01:57]} 25. Qxg2 {[%clk 0:00:49]} 25...
Qxg2+ {[%clk 0:01:55.2]} 26. Kxg2 {[%clk 0:00:50.9]} 26... h5 {[%clk 0:01:41.2]}
27. Nxe6 {[%clk 0:00:47.2]} 27... Rxe6 {[%clk 0:01:42.7]} 28. Kf3 {[%clk
0:00:46.5]} 28... Bf8 {[%clk 0:01:41.1]} 29. Ng5 {[%clk 0:00:43.2]} 29... Nxg5+
{[%clk 0:01:41.4]} 30. hxg5 {[%clk 0:00:43.6]} 30... Kf7 {[%clk 0:01:41.7]} 31.
Reb1 {[%clk 0:00:34.8]} 31... Ke8 {[%clk 0:01:40.7]} 32. b3 {[%clk 0:00:34.1]}
32... axb3 {[%clk 0:01:41.5]} 33. Rxb3 {[%clk 0:00:36]} 33... Be7 {[%clk
0:01:35.2]} 34. a4 {[%clk 0:00:35]} 34... Bd8 {[%clk 0:01:36]} 35. Be1 {[%clk
0:00:29.1]} 35... Kd7 {[%clk 0:01:35.2]} 36. Rb5 {[%clk 0:00:27.6]} 36... Kc6
{[%clk 0:01:35.5]} 37. Bf2 {[%clk 0:00:25.3]} 37... Re7 {[%clk 0:01:33.5]} 38.
Rb2 {[%clk 0:00:22.1]} 38... Rea7 {[%clk 0:01:31.6]} 39. Rba2 {[%clk 0:00:21.7]}
39... Kd7 {[%clk 0:01:28.2]} 40. Bh4 {[%clk 0:00:22]} 40... Rc7 {[%clk
0:01:25.3]} 41. Bf2 {[%clk 0:00:22.1]} 41... Rc6 {[%clk 0:01:26.6]} 42. Bh4
{[%clk 0:00:22.6]} 42... Rc8 {[%clk 0:01:26.6]} 43. Bf2 {[%clk 0:00:23.2]} 43...
Rca8 {[%clk 0:01:26.3]} 44. Bh4 {[%clk 0:00:23.9]} 44... R6a7 {[%clk 0:01:25.5]}
45. Bf2 {[%clk 0:00:24.2]} 45... b5 {[%clk 0:01:22.2]} 46. cxb5 {[%clk
0:00:21.9]} 46... Ba5 {[%clk 0:01:23.8]} 47. Be1 {[%clk 0:00:07.9]} 47... Bxe1
{[%clk 0:01:10]} 48. Rxe1 {[%clk 0:00:09.8]} 48... Rxa4 {[%clk 0:01:11.7]} 49.
Rxa4 {[%clk 0:00:11.3]} 49... Rxa4 {[%clk 0:01:13.3]} 50. Rc1 {[%clk 0:00:13]}
50... Ra3 {[%clk 0:01:08.5]} 51. Rxc5 {[%clk 0:00:14]} 51... Rxd3+ {[%clk
0:01:09.1]} 52. Ke2 {[%clk 0:00:14.9]} 52... Re3+ {[%clk 0:01:07.8]} 53. Kd2
{[%clk 0:00:15.7]} 53... h4 {[%clk 0:01:02]} 54. Rc6 {[%clk 0:00:13.5]} 1/2-1/2

[Event "*** Titled Tuesday 3|2 Blitz"]
[Site "Chess.com"]
[Date "2014.12.30"]
[Round "7"]
[White "162a54f5d"]
[Black "AlmirDzhumaev"]
[Result "0-1"]
[WhiteElo "2265"]
[BlackElo "2084"]
[TimeControl "180+2"]
[EndTime "12:34:06 PST"]
[Termination "AlmirDzhumaev won by checkmate"]

1. d4 {[%clk 0:03:00]} 1... d5 {[%clk 0:02:57.1]} 2. c4 {[%clk 0:03:00]} 2... e6
{[%clk 0:02:58.7]} 3. Nf3 {[%clk 0:02:57.7]} 3... Nf6 {[%clk 0:03:00.3]} 4. g3
{[%clk 0:02:58.6]} 4... Be7 {[%clk 0:03:00.2]} 5. Bg2 {[%clk 0:02:59.5]} 5...
O-O {[%clk 0:03:01.5]} 6. O-O {[%clk 0:02:59.9]} 6... b6 {[%clk 0:03:01.7]} 7.
cxd5 {[%clk 0:02:56]} 7... exd5 {[%clk 0:03:02.5]} 8. Ne5 {[%clk 0:02:57]} 8...
Bb7 {[%clk 0:03:03.4]} 9. Nc3 {[%clk 0:02:55.8]} 9... Nbd7 {[%clk 0:03:02.1]}
10. Bf4 {[%clk 0:02:45.6]} 10... c6 {[%clk 0:02:58.9]} 11. Qa4 {[%clk
0:02:40.3]} 11... Nxe5 {[%clk 0:02:58.8]} 12. Bxe5 {[%clk 0:02:38.1]} 12... Nd7
{[%clk 0:02:59.7]} 13. Bf4 {[%clk 0:02:39.3]} 13... a6 {[%clk 0:02:53.9]} 14. e4
{[%clk 0:02:31.5]} 14... dxe4 {[%clk 0:02:51.5]} 15. Nxe4 {[%clk 0:02:32.3]}
15... Nf6 {[%clk 0:02:51.5]} 16. Rad1 {[%clk 0:02:21.5]} 16... Rc8 {[%clk
0:02:49]} 17. Rfe1 {[%clk 0:02:12.9]} 17... Nd5 {[%clk 0:02:50]} 18. Bc1 {[%clk
0:02:11.7]} 18... Bb4 {[%clk 0:02:50]} 19. Re2 {[%clk 0:02:10.8]} 19... a5
{[%clk 0:02:47.2]} 20. a3 {[%clk 0:02:11.8]} 20... Ba6 {[%clk 0:02:45.3]} 21.
Rc2 {[%clk 0:02:07.8]} 21... Bb5 {[%clk 0:02:28.6]} 22. Qb3 {[%clk 0:02:08.2]}
22... a4 {[%clk 0:02:30.2]} 23. Qf3 {[%clk 0:02:06.3]} 23... Be7 {[%clk
0:02:28.8]} 24. Nc3 {[%clk 0:01:57.7]} 24... Bc4 {[%clk 0:02:21.7]} 25. Nxa4
{[%clk 0:01:52.3]} 25... b5 {[%clk 0:02:22.7]} 26. b3 {[%clk 0:01:42.7]} 26...
Bxb3 {[%clk 0:02:14.3]} 27. Qxb3 {[%clk 0:01:42.8]} 27... bxa4 {[%clk
0:02:15.8]} 28. Qxa4 {[%clk 0:01:44.5]} 28... Qd6 {[%clk 0:02:15.1]} 29. Bb2
{[%clk 0:01:31.4]} 29... Bf6 {[%clk 0:02:13.3]} 30. Rdc1 {[%clk 0:01:31.1]}
30... Rfe8 {[%clk 0:01:52.8]} 31. Bf3 {[%clk 0:01:29]} 31... Re6 {[%clk
0:01:48.4]} 32. Bg4 {[%clk 0:01:29.7]} 32... Ne7 {[%clk 0:01:42.4]} 33. Qb4
{[%clk 0:01:06.2]} 33... Qd5 {[%clk 0:01:33.6]} 34. Bxe6 {[%clk 0:01:04.8]}
34... Qxe6 {[%clk 0:01:32.4]} 35. Re1 {[%clk 0:01:03.9]} 35... Qf5 {[%clk
0:01:25.8]} 36. Rce2 {[%clk 0:01:03.6]} 36... h6 {[%clk 0:01:01.8]} 37. Rxe7
{[%clk 0:01:01.1]} 37... Bxe7 {[%clk 0:01:02.1]} 38. Qxe7 {[%clk 0:01:03]} 38...
Rb8 {[%clk 0:01:01.2]} 39. Bc1 {[%clk 0:01:00.4]} 39... Rb1 {[%clk 0:00:58.7]}
40. Bf4 {[%clk 0:00:57.3]} 40... g5 {[%clk 0:00:36.7]} 41. Bd6 {[%clk
0:00:48.3]} 41... Kh7 {[%clk 0:00:32.7]} 42. Rxb1 {[%clk 0:00:45.7]} 42... Qxb1+
{[%clk 0:00:33.2]} 43. Kg2 {[%clk 0:00:46.2]} 43... Qf5 {[%clk 0:00:34.3]} 44.
Bc5 {[%clk 0:00:32.3]} 44... Qd5+ {[%clk 0:00:33.8]} 45. Kg1 {[%clk 0:00:33.5]}
45... Qf5 {[%clk 0:00:31.7]} 46. Qe5 {[%clk 0:00:34.4]} 46... Qf3 {[%clk
0:00:28.3]} 47. Qe1 {[%clk 0:00:32.7]} 47... Kg6 {[%clk 0:00:27.8]} 48. a4
{[%clk 0:00:32.8]} 48... h5 {[%clk 0:00:28.5]} 49. a5 {[%clk 0:00:32]} 49... h4
{[%clk 0:00:29.8]} 50. Qf1 {[%clk 0:00:27.7]} 50... Qb3 {[%clk 0:00:20.2]} 51.
a6 {[%clk 0:00:27.6]} 51... Qa2 {[%clk 0:00:21.3]} 52. a7 {[%clk 0:00:28.4]}
52... f6 {[%clk 0:00:22.4]} 53. Kg2 {[%clk 0:00:27.5]} 53... Qd5+ {[%clk
0:00:21.1]} 54. Kg1 {[%clk 0:00:28.5]} 54... Qa2 {[%clk 0:00:21.2]} 55. gxh4
{[%clk 0:00:29.8]} 55... gxh4 {[%clk 0:00:21.4]} 56. Qg2+ {[%clk 0:00:31.3]}
56... Kf5 {[%clk 0:00:22.9]} 57. Qxc6 {[%clk 0:00:31.8]} 57... Qb1+ {[%clk
0:00:23.6]} 58. Kg2 {[%clk 0:00:32.6]} 58... h3+ {[%clk 0:00:22.7]} 59. Kxh3
{[%clk 0:00:32]} 59... Qf1+ {[%clk 0:00:24.3]} 60. Qg2 {[%clk 0:00:32.3]} 60...
Qd3+ {[%clk 0:00:25.3]} 61. Qg3 {[%clk 0:00:31.9]} 61... Qf1+ {[%clk 0:00:26.6]}
62. Kh4 {[%clk 0:00:32.8]} 62... Qd1 {[%clk 0:00:26.8]} 63. Qh3+ {[%clk
0:00:32.7]} 63... Kf4 {[%clk 0:00:26.3]} 64. Qe3+ {[%clk 0:00:31.9]} 64... Kf5
{[%clk 0:00:27.2]} 65. a8=Q {[%clk 0:00:30.9]} 65... Qg4# {[%clk 0:00:27.8]} 0-1

[Event "*** Titled Tuesday 3|2 Blitz"]
[Site "Chess.com"]
[Date "2014.12.30"]
[Round "7"]
[White "Sebastian"]
[Black "DrHolmes13"]
[Result "1-0"]
[WhiteElo "2533"]
[BlackElo "2220"]
[TimeControl "180+2"]
[EndTime "12:34:31 PST"]
[Termination "Sebastian won by resignation"]

1. e4 {[%clk 0:03:00]} 1... c6 {[%clk 0:02:58.7]} 2. Nc3 {[%clk 0:02:57.4]} 2...
d5 {[%clk 0:02:59.8]} 3. Nf3 {[%clk 0:02:56.2]} 3... Bg4 {[%clk 0:03:00.2]} 4.
h3 {[%clk 0:02:56.7]} 4... Bxf3 {[%clk 0:03:01.1]} 5. Qxf3 {[%clk 0:02:57]} 5...
e6 {[%clk 0:03:01.9]} 6. d4 {[%clk 0:02:57]} 6... dxe4 {[%clk 0:03:00.1]} 7.
Qxe4 {[%clk 0:02:34.3]} 7... Nf6 {[%clk 0:03:00]} 8. Qd3 {[%clk 0:02:33.9]} 8...
Na6 {[%clk 0:03:00.1]} 9. a3 {[%clk 0:02:19.9]} 9... Be7 {[%clk 0:02:58.6]} 10.
Be2 {[%clk 0:02:19.4]} 10... O-O {[%clk 0:02:57.1]} 11. O-O {[%clk 0:02:09.1]}
11... Nc7 {[%clk 0:02:53]} 12. Rd1 {[%clk 0:02:09.5]} 12... Qd7 {[%clk
0:02:53.4]} 13. Ne4 {[%clk 0:02:09.9]} 13... Nxe4 {[%clk 0:02:49.9]} 14. Qxe4
{[%clk 0:01:57.6]} 14... Bf6 {[%clk 0:02:50.8]} 15. c3 {[%clk 0:01:58.2]} 15...
Rfe8 {[%clk 0:02:46.7]} 16. Qf3 {[%clk 0:01:56.6]} 16... Qd5 {[%clk 0:02:45.2]}
17. g3 {[%clk 0:01:56.6]} 17... Rad8 {[%clk 0:02:42.5]} 18. Kg2 {[%clk
0:01:57.5]} 18... Qxf3+ {[%clk 0:02:24.6]} 19. Bxf3 {[%clk 0:01:54.3]} 19... e5
{[%clk 0:02:25.8]} 20. dxe5 {[%clk 0:01:46.6]} 20... Rxd1 {[%clk 0:02:22.7]} 21.
Bxd1 {[%clk 0:01:45]} 21... Bxe5 {[%clk 0:02:22.4]} 22. Be3 {[%clk 0:01:45.4]}
22... a6 {[%clk 0:02:14.2]} 23. Bb3 {[%clk 0:01:46.5]} 23... Rd8 {[%clk
0:02:05.5]} 24. Rd1 {[%clk 0:01:46.6]} 24... Rxd1 {[%clk 0:02:06.1]} 25. Bxd1
{[%clk 0:01:47.7]} 25... Kf8 {[%clk 0:02:07.1]} 26. f4 {[%clk 0:01:48.1]} 26...
Bd6 {[%clk 0:02:07.8]} 27. Kf3 {[%clk 0:01:49.2]} 27... Ke7 {[%clk 0:02:07.7]}
28. g4 {[%clk 0:01:49.2]} 28... Nd5 {[%clk 0:02:06.7]} 29. Bd2 {[%clk
0:01:45.6]} 29... f6 {[%clk 0:02:06.6]} 30. h4 {[%clk 0:01:45.9]} 30... Nb6
{[%clk 0:01:57.3]} 31. Bb3 {[%clk 0:01:44.9]} 31... h6 {[%clk 0:01:41.1]} 32. h5
{[%clk 0:01:45.5]} 32... Nd7 {[%clk 0:01:40.9]} 33. Bc2 {[%clk 0:01:45.6]} 33...
Nb6 {[%clk 0:01:40.6]} 34. Bc1 {[%clk 0:01:45.8]} 34... Nd5 {[%clk 0:01:39.7]}
35. Ke4 {[%clk 0:01:46.1]} 35... Ke6 {[%clk 0:01:39.4]} 36. Bb3 {[%clk
0:01:44.6]} 36... Bc7 {[%clk 0:01:36.8]} 37. c4 {[%clk 0:01:40.6]} 37... Ne7
{[%clk 0:01:32.8]} 38. c5+ {[%clk 0:01:40]} 38... Kd7 {[%clk 0:01:33.6]} 39. Bf7
{[%clk 0:01:36.5]} 39... Nc8 {[%clk 0:01:21.2]} 40. Kf5 {[%clk 0:01:35.6]} 40...
Ne7+ {[%clk 0:01:21]} 41. Ke4 {[%clk 0:01:26.3]} 41... Nc8 {[%clk 0:01:21.8]}
42. Bd2 {[%clk 0:01:27.5]} 42... Ke7 {[%clk 0:01:20.3]} 43. Bc4 {[%clk
0:01:27.9]} 43... Kd7 {[%clk 0:01:17.3]} 44. b4 {[%clk 0:01:25.9]} 44... Ne7
{[%clk 0:01:14.4]} 45. a4 {[%clk 0:01:18.7]} 45... Bb8 {[%clk 0:01:12.3]} 46.
Bf7 {[%clk 0:01:16.9]} 46... Bc7 {[%clk 0:01:12.3]} 47. Bc3 {[%clk 0:01:17.5]}
47... Nc8 {[%clk 0:01:05.3]} 48. Kf5 {[%clk 0:01:11.7]} 48... Ne7+ {[%clk
0:01:05.2]} 49. Ke4 {[%clk 0:01:13]} 49... Nc8 {[%clk 0:01:06.3]} 50. Bc4 {[%clk
0:01:12.7]} 50... Ne7 {[%clk 0:01:02.1]} 51. g5 {[%clk 0:01:09.5]} 51... Nd5
{[%clk 0:00:57]} 52. Bxd5 {[%clk 0:01:04]} 52... cxd5+ {[%clk 0:00:57.7]} 53.
Kxd5 {[%clk 0:00:58.6]} 53... Bxf4 {[%clk 0:00:51.4]} 54. gxf6 {[%clk
0:00:59.1]} 54... gxf6 {[%clk 0:00:52.2]} 55. Bxf6 {[%clk 0:01:00.3]} 55... Bd2
{[%clk 0:00:49.2]} 56. b5 {[%clk 0:01:00.8]} 56... axb5 {[%clk 0:00:50.4]} 57.
axb5 {[%clk 0:01:02.1]} 57... Be3 {[%clk 0:00:50.1]} 58. Be5 {[%clk 0:01:02.8]}
58... Bf2 {[%clk 0:00:47.7]} 59. Bf4 {[%clk 0:01:02.2]} 59... Ke7 {[%clk
0:00:42.6]} 60. Bxh6 {[%clk 0:01:02.3]} 60... Kf6 {[%clk 0:00:44]} 61. Bf4
{[%clk 0:01:03.2]} 61... Kf5 {[%clk 0:00:44.7]} 62. h6 {[%clk 0:01:03.6]} 62...
Kg6 {[%clk 0:00:44.2]} 63. c6 {[%clk 0:01:04]} 63... bxc6+ {[%clk 0:00:44.9]}
64. bxc6 {[%clk 0:01:05.3]} 64... Bb6 {[%clk 0:00:46]} 65. Ke6 {[%clk
0:01:06.1]} 65... Ba5 {[%clk 0:00:43.6]} 66. Kd7 {[%clk 0:01:07.2]} 66... Kf5
{[%clk 0:00:43.8]} 67. h7 {[%clk 0:01:08]} 67... Bc3 {[%clk 0:00:45.1]} 68. c7
{[%clk 0:01:08.7]} 68... Kxf4 {[%clk 0:00:46.4]} 69. c8=Q {[%clk 0:01:09.6]}
69... Be5 {[%clk 0:00:47.7]} 70. h8=Q {[%clk 0:01:10]} 70... Bxh8 {[%clk
0:00:46.6]} 71. Qxh8 {[%clk 0:01:11.6]} 71... Ke4 {[%clk 0:00:48.1]} 72. Kd6
{[%clk 0:01:11.1]} 1-0

[Event "*** Titled Tuesday 3|2 Blitz"]
[Site "Chess.com"]
[Date "2014.12.30"]
[Round "7"]
[White "MisaPap"]
[Black "bugsbunny444"]
[Result "0-1"]
[WhiteElo "2327"]
[BlackElo "2255"]
[TimeControl "180+2"]
[EndTime "12:35:45 PST"]
[Termination "bugsbunny444 won by resignation"]

1. e4 {[%clk 0:02:56.3]} 1... e6 {[%clk 0:02:57.7]} 2. d4 {[%clk 0:02:55.4]}
2... d5 {[%clk 0:02:59.2]} 3. e5 {[%clk 0:02:54.7]} 3... c5 {[%clk 0:02:59.7]}
4. c3 {[%clk 0:02:55.4]} 4... Nc6 {[%clk 0:02:56.5]} 5. Nf3 {[%clk 0:02:56.3]}
5... Qb6 {[%clk 0:02:57.8]} 6. Bd3 {[%clk 0:02:56.4]} 6... Nh6 {[%clk
0:02:39.3]} 7. O-O {[%clk 0:02:54.7]} 7... cxd4 {[%clk 0:02:40.6]} 8. cxd4
{[%clk 0:02:55.3]} 8... Nf5 {[%clk 0:02:42.3]} 9. Bxf5 {[%clk 0:02:54]} 9...
exf5 {[%clk 0:02:44.2]} 10. Nc3 {[%clk 0:02:55.2]} 10... Be6 {[%clk 0:02:45.9]}
11. h4 {[%clk 0:02:56.1]} 11... h6 {[%clk 0:02:45.6]} 12. Ne2 {[%clk 0:02:51.4]}
12... Be7 {[%clk 0:02:44.1]} 13. Nf4 {[%clk 0:02:41.8]} 13... O-O {[%clk
0:02:42.6]} 14. b3 {[%clk 0:02:36.1]} 14... Rfc8 {[%clk 0:02:40.8]} 15. Be3
{[%clk 0:02:22.6]} 15... Nb4 {[%clk 0:02:24.9]} 16. h5 {[%clk 0:02:22.2]} 16...
Rc7 {[%clk 0:02:01.6]} 17. Ne1 {[%clk 0:02:15.1]} 17... Rac8 {[%clk 0:01:59.6]}
18. a3 {[%clk 0:02:04.1]} 18... Nc2 {[%clk 0:01:57.2]} 19. Nxc2 {[%clk
0:02:04.6]} 19... Rxc2 {[%clk 0:01:59.1]} 20. b4 {[%clk 0:02:03.1]} 20... R8c4
{[%clk 0:01:26]} 21. Nd3 {[%clk 0:01:48.9]} 21... Qc6 {[%clk 0:01:15.5]} 22. Rc1
{[%clk 0:01:41]} 22... Rxc1 {[%clk 0:01:08]} 23. Nxc1 {[%clk 0:01:38.8]} 23...
b6 {[%clk 0:00:55.9]} 24. Ne2 {[%clk 0:01:34.2]} 24... a5 {[%clk 0:00:49.2]} 25.
bxa5 {[%clk 0:01:30.7]} 25... bxa5 {[%clk 0:00:51.1]} 26. Qb3 {[%clk 0:01:25]}
26... Qa4 {[%clk 0:00:45.7]} 27. Qb8+ {[%clk 0:01:04.3]} 27... Kh7 {[%clk
0:00:46.8]} 28. Ra1 {[%clk 0:00:45.8]} 28... Qc2 {[%clk 0:00:31.7]} 29. Nf4
{[%clk 0:00:39]} 29... Qc3 {[%clk 0:00:25.8]} 30. Rb1 {[%clk 0:00:24.9]} 30...
Qxa3 {[%clk 0:00:23.5]} 31. Nxe6 {[%clk 0:00:25.5]} 31... fxe6 {[%clk
0:00:24.4]} 32. Qe8 {[%clk 0:00:25.9]} 32... Rb4 {[%clk 0:00:11.6]} 33. Rf1
{[%clk 0:00:14.1]} 33... Rb6 {[%clk 0:00:11.5]} 34. Qg6+ {[%clk 0:00:14.1]}
34... Kg8 {[%clk 0:00:12]} 35. Bxh6 {[%clk 0:00:14.4]} 35... Bf8 {[%clk
0:00:12.8]} 36. Be3 {[%clk 0:00:14.4]} 36... Qe7 {[%clk 0:00:08.9]} 37. Rc1
{[%clk 0:00:13.7]} 37... Qf7 {[%clk 0:00:09.2]} 38. Qg5 {[%clk 0:00:14.7]} 38...
Qb7 {[%clk 0:00:06.8]} 39. Kh2 {[%clk 0:00:13.7]} 39... a4 {[%clk 0:00:06.1]}
40. Ra1 {[%clk 0:00:11.4]} 40... a3 {[%clk 0:00:07.2]} 41. h6 {[%clk 0:00:12.3]}
41... Rb1 {[%clk 0:00:06.4]} 42. Ra2 {[%clk 0:00:12.8]} 42... Rb2 {[%clk
0:00:07.3]} 43. Ra1 {[%clk 0:00:13.8]} 43... Rb1 {[%clk 0:00:08.7]} 44. Ra2
{[%clk 0:00:14.3]} 44... Rb2 {[%clk 0:00:10.2]} 45. Ra1 {[%clk 0:00:15.5]} 45...
Rb1 {[%clk 0:00:11.6]} 46. Rxb1 {[%clk 0:00:16.8]} 46... Qxb1 {[%clk 0:00:12.2]}
47. Qg6 {[%clk 0:00:18.7]} 47... Qb6 {[%clk 0:00:06.5]} 48. h7+ {[%clk
0:00:19.7]} 48... Kh8 {[%clk 0:00:08]} 49. Qe8 {[%clk 0:00:20.5]} 49... Qb4
{[%clk 0:00:06.3]} 50. Qxe6 {[%clk 0:00:21.1]} 50... Kxh7 {[%clk 0:00:07.1]} 51.
Qxf5+ {[%clk 0:00:22.2]} 51... Kh8 {[%clk 0:00:08.3]} 52. Qh5+ {[%clk 0:00:23]}
52... Kg8 {[%clk 0:00:09.4]} 53. e6 {[%clk 0:00:24.9]} 53... Qd6+ {[%clk
0:00:10.8]} 54. g3 {[%clk 0:00:23.1]} 54... Qxe6 {[%clk 0:00:11.2]} 55. Qe2
{[%clk 0:00:23.2]} 55... Qe4 {[%clk 0:00:11.4]} 56. Qa2 {[%clk 0:00:23.7]} 56...
Qf3 {[%clk 0:00:09.1]} 57. Qb3 {[%clk 0:00:24.4]} 57... Be7 {[%clk 0:00:07.6]}
58. Kg1 {[%clk 0:00:24.8]} 58... Kf7 {[%clk 0:00:09.1]} 59. Qa2 {[%clk
0:00:25.4]} 59... Ke6 {[%clk 0:00:10.2]} 60. Qb3 {[%clk 0:00:26.7]} 60... Bd6
{[%clk 0:00:11.8]} 61. Kh2 {[%clk 0:00:26]} 61... Qe2 {[%clk 0:00:11.4]} 62. Kh3
{[%clk 0:00:26.5]} 62... Qc4 {[%clk 0:00:12.6]} 63. Qb1 {[%clk 0:00:27.3]} 63...
a2 {[%clk 0:00:10.5]} 64. Qg6+ {[%clk 0:00:28.1]} 64... Kd7 {[%clk 0:00:12.1]}
65. Qf5+ {[%clk 0:00:28.1]} 65... Kc6 {[%clk 0:00:13.5]} 66. Qc8+ {[%clk
0:00:29]} 66... Kb5 {[%clk 0:00:11.2]} 67. Qa8 {[%clk 0:00:28.8]} 67... Kb4
{[%clk 0:00:07.5]} 68. Kg4 {[%clk 0:00:27.3]} 68... Kb3 {[%clk 0:00:08.7]} 69.
Bd2 {[%clk 0:00:26.8]} 69... Kc2 {[%clk 0:00:09.3]} 70. Be3 {[%clk 0:00:27.8]}
70... Bb4 {[%clk 0:00:08.2]} 71. Qa4+ {[%clk 0:00:28]} 71... Qb3 {[%clk
0:00:05.6]} 72. Qc6+ {[%clk 0:00:29.2]} 72... Qc4 {[%clk 0:00:07]} 73. Qa4+
{[%clk 0:00:30.1]} 73... Kb2 {[%clk 0:00:07.8]} 74. Qd1 {[%clk 0:00:29.8]} 74...
a1=Q {[%clk 0:00:09.1]} 75. Bc1+ {[%clk 0:00:30.2]} 75... Qaxc1 {[%clk
0:00:09.8]} 0-1

[Event "*** Titled Tuesday 3|2 Blitz"]
[Site "Chess.com"]
[Date "2014.12.30"]
[Round "8"]
[White "VovAn1991"]
[Black "davopetr"]
[Result "1-0"]
[WhiteElo "2460"]
[BlackElo "2561"]
[TimeControl "180+2"]
[EndTime "12:40:03 PST"]
[Termination "VovAn1991 won by resignation"]

1. e4 {[%clk 0:03:00]} 1... e6 {[%clk 0:02:57.8]} 2. d4 {[%clk 0:03:00.5]} 2...
d5 {[%clk 0:02:59.7]} 3. Nd2 {[%clk 0:03:01.6]} 3... Nf6 {[%clk 0:02:59.6]} 4.
e5 {[%clk 0:03:01.5]} 4... Nfd7 {[%clk 0:03:00.7]} 5. c3 {[%clk 0:03:03.2]} 5...
c5 {[%clk 0:03:00.8]} 6. Bd3 {[%clk 0:03:04.4]} 6... Nc6 {[%clk 0:03:01.8]} 7.
Ne2 {[%clk 0:03:05.7]} 7... cxd4 {[%clk 0:03:02.5]} 8. cxd4 {[%clk 0:03:07.6]}
8... f6 {[%clk 0:03:03.3]} 9. exf6 {[%clk 0:03:09.5]} 9... Nxf6 {[%clk
0:03:04.5]} 10. O-O {[%clk 0:03:10.1]} 10... Bd6 {[%clk 0:03:04.8]} 11. Nf3
{[%clk 0:03:11.2]} 11... Qc7 {[%clk 0:03:05]} 12. Bd2 {[%clk 0:03:10.5]} 12...
O-O {[%clk 0:02:58.8]} 13. Rc1 {[%clk 0:03:10.9]} 13... Bd7 {[%clk 0:02:52.3]}
14. Ng3 {[%clk 0:03:09.2]} 14... Rac8 {[%clk 0:02:38.3]} 15. Bc3 {[%clk
0:03:04.2]} 15... Bf4 {[%clk 0:02:33.1]} 16. Rc2 {[%clk 0:03:04.8]} 16... Qb6
{[%clk 0:02:28.9]} 17. Re2 {[%clk 0:03:00.4]} 17... Nb4 {[%clk 0:02:21.7]} 18.
Bxb4 {[%clk 0:02:45]} 18... Qxb4 {[%clk 0:02:21.8]} 19. a3 {[%clk 0:02:46.1]}
19... Qb6 {[%clk 0:02:17.1]} 20. b4 {[%clk 0:02:18.2]} 20... Rc3 {[%clk
0:02:12.7]} 21. Ra2 {[%clk 0:02:02.6]} 21... Rxd3 {[%clk 0:02:07.4]} 22. Qxd3
{[%clk 0:02:03.4]} 22... Bb5 {[%clk 0:02:08.8]} 23. Qd1 {[%clk 0:01:59.4]} 23...
Bxf1 {[%clk 0:02:07.8]} 24. Nxf1 {[%clk 0:01:58.8]} 24... Ne4 {[%clk 0:02:03.1]}
1-0

[Event "*** Titled Tuesday 3|2 Blitz"]
[Site "Chess.com"]
[Date "2014.12.30"]
[Round "8"]
[White "DARIO555"]
[Black "vinceyoung15"]
[Result "1-0"]
[WhiteElo "2202"]
[BlackElo "1982"]
[TimeControl "180+2"]
[EndTime "12:42:02 PST"]
[Termination "DARIO555 won by resignation"]

1. e4 {[%clk 0:02:39.4]} 1... c5 {[%clk 0:02:57]} 2. Nc3 {[%clk 0:02:40.4]} 2...
Nc6 {[%clk 0:02:57.8]} 3. f4 {[%clk 0:02:42.3]} 3... g6 {[%clk 0:02:58.9]} 4.
Nf3 {[%clk 0:02:41.2]} 4... Bg7 {[%clk 0:03:00]} 5. Bb5 {[%clk 0:02:42.9]} 5...
Nd4 {[%clk 0:02:59.4]} 6. a4 {[%clk 0:02:43.9]} 6... Nxb5 {[%clk 0:02:59.7]} 7.
axb5 {[%clk 0:02:44.6]} 7... e6 {[%clk 0:02:52.2]} 8. O-O {[%clk 0:02:39.7]}
8... d5 {[%clk 0:02:51.1]} 9. d3 {[%clk 0:02:30.5]} 9... Ne7 {[%clk 0:02:51]}
10. Qe1 {[%clk 0:02:29.9]} 10... O-O {[%clk 0:02:49]} 11. Qh4 {[%clk 0:02:24.3]}
11... dxe4 {[%clk 0:02:42.3]} 12. dxe4 {[%clk 0:02:22]} 12... b6 {[%clk
0:02:32.2]} 13. Be3 {[%clk 0:01:44.8]} 13... Bb7 {[%clk 0:02:28.8]} 14. Rfd1
{[%clk 0:01:40.7]} 14... Qc7 {[%clk 0:02:24.2]} 15. Rd2 {[%clk 0:01:37.5]} 15...
f5 {[%clk 0:02:20.6]} 16. Ng5 {[%clk 0:01:32.1]} 16... h6 {[%clk 0:02:12.2]} 17.
Nxe6 {[%clk 0:01:33.1]} 17... Qc8 {[%clk 0:02:09.4]} 18. Qxe7 {[%clk 0:01:08.8]}
18... Rf7 {[%clk 0:02:06.2]} 19. Rd8+ {[%clk 0:01:07.3]} 19... Qxd8 {[%clk
0:02:06.1]} 20. Qxd8+ {[%clk 0:01:05.8]} 20... Rxd8 {[%clk 0:02:07.5]} 21. Nxd8
{[%clk 0:01:07.4]} 21... Rd7 {[%clk 0:02:02.6]} 22. Nxb7 {[%clk 0:01:01.8]}
22... Rxb7 {[%clk 0:02:03.1]} 23. e5 {[%clk 0:01:03.3]} 23... g5 {[%clk
0:02:02.4]} 24. g3 {[%clk 0:01:03.7]} 24... gxf4 {[%clk 0:02:02.7]} 25. gxf4
{[%clk 0:01:04.6]} 25... Kf7 {[%clk 0:02:03.6]} 26. Kf2 {[%clk 0:01:01.1]} 26...
Ke6 {[%clk 0:02:04.8]} 27. Rd1 {[%clk 0:01:00.7]} 27... Bf8 {[%clk 0:02:01]} 28.
Kf3 {[%clk 0:00:56.2]} 28... Be7 {[%clk 0:01:59.5]} 29. Nd5 {[%clk 0:00:52]}
29... Bd8 {[%clk 0:02:00]} 30. c4 {[%clk 0:00:52.4]} 30... Rg7 {[%clk
0:01:59.1]} 31. Rg1 {[%clk 0:00:52.3]} 31... Rxg1 {[%clk 0:01:55.4]} 32. Bxg1
{[%clk 0:00:53.3]} 32... h5 {[%clk 0:01:55.8]} 33. b4 {[%clk 0:00:51.8]} 33...
cxb4 {[%clk 0:01:55]} 34. Nxb4 {[%clk 0:00:52.9]} 34... Be7 {[%clk 0:01:55.5]}
35. Nc6 {[%clk 0:00:53.8]} 35... Bc5 {[%clk 0:01:56.1]} 36. Bxc5 {[%clk
0:00:53.9]} 36... bxc5 {[%clk 0:01:57.2]} 1-0